Cogmind - Beta 16 @@@ ROGUE MODE // 2025.10.23 @ 12:21:51 Player: MolePlayingNice Result: Destroyed by V590-q with Concept XC Strikerail Performance ------------- Evolutions (7) 3500 Regions Visited (26) 5200 Robots Destroyed (245) 1225 Value Destroyed (14848) 14848 Prototype IDs (133) 2660 Alien Tech Used (3) 600 Bonus (15222) 15222 TOTAL SCORE: 43255 Bonus ------- High Alert Combat Kills 2049 Follower Combat Kills 6718 Entered Garrisons 1200 Used RIF Installer 4000 Aligned with FarCom 300 Built Enhanced Grunts 300 A7 Reached Mainframe 300 Met R17 at Cetus 500 Met R17 at Research 2000 Scanned by Researcher 500 Friendly Fire -2645 Cogmind --------- Core Integrity 0/1300 Matter 9/300 Energy 115/250 System Corruption 56% Temperature Cool (12) Movement Immobile (Siege) Ox1 Location -3/Protoforge Parts ------- > --- POWER (2) -------- Micro Antimatter Reactor > --- PROPULSION (6) --- Medium Treads Armored Heavy Treads > --- UTILITY (11) ----- Huge Storage Unit Small Battery Plexus Tether Heavy Armor Plating Relay Coupler [Hunter] (5) > --- WEAPON (2) ------- Nova Cannon Nova Cannon > --- INVENTORY (25) --- Matter Drive Medium Treads Concept NT7 Matterbank (0) Heavy Armor Plating Advanced Force Field Crosscalibrator Transdimensional Reconstructor High-powered Transdimensional Reconstructor High-powered Transdimensional Reconstructor Subatomic Replicator Latent Energy Streamer Core Cannon Advanced Remote Datajack Advanced Remote Datajack Advanced Remote Datajack Peak State ------------ > --- POWER ------------ Light Antimatter Reactor Light Particle Reactor > --- PROPULSION ------- Armored Heavy Treads Centrium Heavy Treads Centrium Heavy Treads > --- UTILITY ---------- Experimental Heat Sink Advanced Cooling System Huge Storage Unit Centrium Medium Armor Plating Phase Armor Relay Coupler [NC] Relay Coupler [Swarmer] Relay Coupler [Grunt] Relay Coupler [Grunt] Relay Coupler [Hunter] > --- WEAPON ----------- Nova Cannon Nova Cannon > --- INVENTORY -------- Light Quantum Reactor Matter Drive Armored Heavy Treads Layered Medium Armor Plating Centrium Medium Armor Plating Centrium Heavy Armor Plating Improved Force Field Advanced Force Field Dimensional Node Initializer Transdimensional Reconstructor High-powered Transdimensional Reconstructor High-powered Transdimensional Reconstructor Subatomic Replicator Latent Energy Streamer Nova Cannon Core Cannon Micro-nuke Launcher Improved Remote Datajack Advanced Remote Datajack Advanced Remote Datajack [Rating: 172] Favorites ----------- Power Angular Momentum Engine Engine Angular Momentum Engine Power Core Light Nuclear Core Reactor Light Antimatter Reactor Propulsion Light Treads Treads Light Treads Leg Carbon-fiber Leg Wheel Wheel Hover Unit Backup Propulsion III Utility Relay Coupler [Grunt] Device Advanced Heat Sink Storage Huge Storage Unit Processor Advanced Targeting Computer Hackware Relay Coupler [Grunt] Protection Light Armor Plating Artifact Phase Armor Weapon Heavy Particle Cannon Energy Gun Advanced Variable Charge Gun Energy Cannon Heavy Particle Cannon Ballistic Gun Assault Rifle Ballistic Cannon Magnetic Acceleration Cannon Launcher Grenade Launcher Special Weapon Remote Datajack Slashing Weapon Phasing Sabre Special Melee Weapon Datajack Build | -11 -10 -10 -10 -9 -8 -8 -8 -8 -8 -6 -6 -5 -5 -5 -5 -4 -4 -4 -4 -4 -4 -4 -4 -3 -3 -3 ------- Run | Yrd Mat Min Exi Min Mat Gar Sto Gar Rec Fac Gar Fac Was Fac Gar Fac Gar Fac Ext Cet Arc Hub Gar Res Qua Frg Slots Evolved 14 | . . . . . 4 . . . . 4 . 2 . . . 2 . . . . . . . 2 . . Power 1 | . . . . . . . . . . 1 . . . . . . . . . . . . . . . . Propulsion 4 | . . . . . . . . . . 2 . . . . . . . . . . . . . 2 . . Utility 9 | . . . . . 4 . . . . 1 . 2 . . . 2 . . . . . . . . . . Weapon . | . . . . . . . . . . . . . . . . . . . . . . . . . . . Parts Attached 268 | . 15 1 . 1 18 16 13 15 1 9 21 7 3 5 21 3 27 9 14 4 3 1 17 16 11 17 Power 29 | . 1 1 . . 2 3 1 . . 1 3 1 . . 2 . 5 . 1 . . . 3 1 1 3 Engine 8 | . . 1 . . . 2 1 . . 1 2 1 . . . . . . . . . . . . . . Core 5 | . 1 . . . 2 1 . . . . 1 . . . . . . . . . . . . . . . Reactor 16 | . . . . . . . . . . . . . . . 2 . 5 . 1 . . . 3 1 1 3 Propulsion 49 | . 2 . . . 4 3 3 7 . 2 2 3 1 4 2 . 3 1 3 1 . 1 1 1 1 4 Treads 45 | . 2 . . . 4 3 3 7 . 2 2 . 1 3 2 . 3 1 3 1 . 1 1 1 1 4 Leg 1 | . . . . . . . . . . . . 1 . . . . . . . . . . . . . . Wheel 3 | . . . . . . . . . . . . 2 . 1 . . . . . . . . . . . . Hover . | . . . . . . . . . . . . . . . . . . . . . . . . . . . Flight . | . . . . . . . . . . . . . . . . . . . . . . . . . . . Utility 140 | . 4 . . . 11 7 6 7 1 6 11 2 2 1 13 2 18 5 6 2 1 . 12 11 5 7 Device 38 | . 2 . . . 4 2 1 2 . . 4 . . 1 4 . 5 1 2 . 1 . 5 2 1 1 Storage 6 | . 2 . . . . . . . . 1 . . . . . 1 1 . . . . . . . . 1 Processor 8 | . . . . . 3 . . . . . . . . . . . . . . . . . . 3 1 1 Hackware 53 | . . . . . 1 2 4 2 . 3 4 2 . . 7 . 12 2 1 1 . . 5 5 2 . Protection 34 | . . . . . 3 3 1 3 1 2 3 . 2 . 2 1 . 2 3 1 . . 2 1 . 4 Artifact 1 | . . . . . . . . . . . . . . . . . . . . . . . . . 1 . Weapon 50 | . 8 . . 1 1 3 3 1 . . 5 1 . . 4 1 1 3 4 1 2 . 1 3 4 3 Energy Gun 2 | . . . . . . . . . . . . . . . . . . . . 1 1 . . . . . Energy Cannon 17 | . 2 . . 1 1 . 1 . . . 3 . . . 2 . . . 3 . . . . 1 2 1 Ballistic Gun 3 | . 3 . . . . . . . . . . . . . . . . . . . . . . . . . Ballistic Cannon 5 | . . . . . . 1 . . . . . . . . 2 . 1 1 . . . . . . . . Launcher 6 | . 2 . . . . . 1 . . . . 1 . . . . . . . . . . . 1 . 1 Special Weapon 13 | . 1 . . . . . . 1 . . 2 . . . . 1 . 2 1 . . . 1 1 2 1 Impact Weapon . | . . . . . . . . . . . . . . . . . . . . . . . . . . . Slashing Weapon 1 | . . . . . . . . . . . . . . . . . . . . . 1 . . . . . Piercing Weapon . | . . . . . . . . . . . . . . . . . . . . . . . . . . . Special Melee Weapon 3 | . . . . . . 2 1 . . . . . . . . . . . . . . . . . . . Unidentified Prototypes 12 | . . . . . . . 2 . . . . . . . 1 . 1 . . 3 . . 1 3 . 1 Corrupted Parts 3 | . . . . . . . . . . . . . . . . . 1 . . 2 . . . . . . System Corruption 9 | . . . . . . . . . . . . . . . . . 1 . . 8 . . . . . . Parts Lost 88 | . . . . . 4 3 1 4 . 2 8 13 2 . . . 23 6 3 . . . . . 1 18 Power 17 | . . . . . 1 1 1 . . . 1 3 2 . . . 4 . 1 . . . . . . 3 Propulsion 16 | . . . . . 2 . . . . . 2 5 . . . . 2 1 1 . . . . . . 3 Utility 43 | . . . . . 1 1 . 3 . 2 4 3 . . . . 13 4 1 . . . . . 1 10 Weapon 12 | . . . . . . 1 . 1 . . 1 2 . . . . 4 1 . . . . . . . 2 Highest Loss Streak 11 | . . . . . 3 2 1 2 . 2 4 11 2 . . . 7 5 2 . . . . . 1 4 To Critical Strikes . | . . . . . . . . . . . . . . . . . . . . . . . . . . . Average Backups 21 | . 16 20 19 19 18 18 19 19 20 20 23 22 23 23 23 22 22 22 24 23 23 23 23 23 21 20 Power 1 | . 2 2 1 1 1 1 . . 1 . 1 1 1 1 1 2 . 1 1 1 1 1 1 1 1 . Propulsion 2 | . 3 5 3 3 3 2 2 2 2 . 1 . 1 1 1 2 1 1 3 1 2 2 1 . 1 2 Utility 10 | . 2 5 6 6 4 7 9 10 11 10 11 13 12 13 14 12 16 16 13 13 13 13 12 15 7 4 Weapon 5 | . 7 8 8 8 7 5 5 5 4 5 6 5 5 6 4 4 3 1 3 4 4 5 5 4 4 4 Tool/Special . | . . . . . . . . . . . . . . . . . . . . . . . . . . . Unused Backups 107 | . 8 . 3 1 3 7 2 7 . 1 10 1 . 1 5 2 9 5 5 2 . . 5 8 12 10 Power 10 | . 1 . 1 . . 2 . 3 . . . . . . . . . 1 . . . . 1 1 . . Propulsion 16 | . 2 . 2 . 2 1 . 1 . . . . . . . 2 1 . 3 . . . . . 1 1 Utility 45 | . 1 . . . . 2 2 2 . 1 4 . . . 4 . 5 4 2 2 . . 2 5 6 3 Weapon 21 | . 4 . . 1 . 2 . 1 . . 4 1 . 1 1 . 3 . . . . . 1 . 2 . Tool/Special 15 | . . . . . 1 . . . . . 2 . . . . . . . . . . . 1 2 3 6 Average Slot Usage (%) 92 | . 97 100 100 100 98 100 97 99 100 94 99 87 77 93 89 88 78 86 89 93 93 94 92 82 84 77 Engine 6 | . 12 13 14 14 2 7 8 9 9 7 11 6 10 11 5 . . . . . . . . . . . Reactor 3 | . . . . . . . . . . . . . . . 5 10 6 10 10 10 10 10 10 9 9 7 Treads 16 | . 23 28 28 28 18 18 17 18 18 25 25 14 . 9 16 10 8 9 10 14 15 15 13 11 14 14 Device 10 | . 11 14 14 14 22 14 11 10 9 6 11 8 5 5 5 10 13 10 11 10 10 10 8 7 7 4 Storage 7 | . 13 14 14 14 9 9 9 9 9 6 6 5 5 5 5 5 6 5 5 5 5 5 5 4 4 5 Hackware 19 | . . . . . 3 12 24 19 18 21 17 21 23 23 26 26 26 33 31 31 31 31 29 27 26 19 Protection 9 | . . . . . 9 13 8 15 18 10 9 7 5 11 9 14 5 6 8 10 10 10 12 10 9 11 Energy Cannon 8 | . 3 28 28 27 17 14 10 11 9 4 5 4 5 5 4 5 4 1 5 9 2 5 4 3 4 7 Ballistic Gun 1 | . 22 . . . . . . . . . . . . . . . . . . . . . . . . . Ballistic Cannon 1 | . . . . . . 3 3 1 6 2 . . . . . . 2 5 . . . . . . . . Special Weapon 2 | . 2 . . . . . . 4 2 5 5 5 . 4 5 5 2 3 4 . 4 5 5 4 3 1 Peak Build Rating 172 | . 11 11 11 11 30 37 38 38 36 50 61 69 67 74 120 125 128 113 120 139 138 137 146 152 170 172 Average Rating 72 | . 8 9 10 11 23 33 33 34 35 40 53 57 62 72 94 120 104 102 115 135 136 136 131 135 156 153 On Entrance 72 | 6 6 11 9 11 11 30 35 38 33 36 50 56 53 67 74 108 125 106 113 118 138 137 137 124 146 170 Avg Prop Armor Cover (%) 7 | . . . . . . . . . . . . 11 5 9 . . . . 11 . . . . 7 . . Naked Turns . | . . . . . . . . . . . . . . . . . . . . . . . . . . . Heaviest Build 172 | 14 52 52 52 52 62 68 68 75 79 116 131 118 122 125 153 149 153 129 133 134 134 129 145 155 170 172 Greatest Support 240 | 20 40 40 40 40 40 40 40 40 40 80 80 80 26 96 155 155 155 150 150 150 150 150 160 240 240 220 Greatest Overweight (x) 32 | . 1 1 1 1 1 1 2 1 1 1 1 32 12 12 1 . 1 1 1 . . 1 . . . 1 Average Overweight (x) 1 | . . 1 1 1 1 1 1 1 1 . 1 2 9 11 . . . . . . . . . . . . Largest Inventory Capacity 25 | . 20 20 20 20 20 20 20 20 20 25 25 25 25 25 25 25 25 25 25 25 25 25 25 25 25 25 Average Capacity 22 | . 18 20 20 20 20 20 20 20 20 23 25 25 25 25 25 25 25 25 25 25 25 25 25 25 25 25 Most Carried 25 | . 20 20 20 20 20 20 20 20 20 25 25 25 25 25 25 25 25 25 25 25 25 25 25 25 25 25 Average Carried 22 | . 16 20 19 19 19 19 19 19 20 20 24 23 24 24 24 23 24 23 24 24 25 25 24 24 24 22 Final Capacity 25 | 8 20 20 20 20 20 20 20 20 20 25 25 25 25 25 25 25 25 25 25 25 25 25 25 25 25 25 Final Carried 25 | 6 20 20 20 20 20 20 20 20 20 25 25 21 25 25 25 25 25 25 25 25 25 25 25 25 24 17 Class Distribution -------------------- 51% | Botlord-Mutant 24% | Bothacker-Mutant 14% | Mutant 7% | Scavenger-Mutant Dominant Class ---------------- Mutant | -10/Materials Mutant | -10/Mines Mutant | -10/Exiles Mutant | -9/Mines Scavenger-Mutant | -8/Materials Scavenger-Mutant | -8/Garrison Bothacker-Mutant | -8/Storage Bothacker-Mutant | -8/Garrison Bothacker-Mutant | -8/Recycling Bothacker-Mutant | -6/Factory Bothacker-Mutant | -6/Garrison Botlord-Mutant | -5/Factory Botlord-Mutant | -5/Waste Botlord-Mutant | -5/Factory Botlord-Mutant | -5/Garrison Botlord-Mutant | -4/Factory Botlord-Mutant | -4/Garrison Botlord-Mutant | -4/Factory Botlord-Mutant | -4/Extension Commander-Mutant | -4/Cetus Botlord-Mutant | -4/Archives Botlord-Mutant | -4/Hub_04(d) Botlord-Mutant | -4/Garrison Botlord-Mutant | -3/Research Botlord-Mutant | -3/Quarantine Botlord-Mutant | -3/Protoforge Resources | -11 -10 -10 -10 -9 -8 -8 -8 -8 -8 -6 -6 -5 -5 -5 -5 -4 -4 -4 -4 -4 -4 -4 -4 -3 -3 -3 ----------- Run | Yrd Mat Min Exi Min Mat Gar Sto Gar Rec Fac Gar Fac Was Fac Gar Fac Gar Fac Ext Cet Arc Hub Gar Res Qua Frg Matter Collected 8466 | 179 363 210 . 33 260 291 275 274 52 257 775 25 330 121 521 40 1010 333 957 118 198 124 422 360 386 552 Remotely . | . . . . . . . . . . . . . . . . . . . . . . . . . . . Salvage Created 10919 | . 428 199 . 27 680 812 161 1002 44 232 760 487 396 75 302 114 1657 146 503 58 387 150 256 . 251 1792 Parts 540 | . 47 7 . 4 28 45 12 53 3 10 36 15 7 10 12 8 45 5 20 1 26 6 15 . 16 109 Haulers Intercepted 3 | . . . . . 2 . 1 . . . . . . . . . . . . . . . . . . . Recyclers Shooed 4 | . . . . . 1 . . . . . . 2 . . . . . . . . . 1 . . . . Parts Field Recycled . | . . . . . . . . . . . . . . . . . . . . . . . . . . . Retrieved Matter . | . . . . . . . . . . . . . . . . . . . . . . . . . . . Parts Self-Destructed . | . . . . . . . . . . . . . . . . . . . . . . . . . . . Prevented . | . . . . . . . . . . . . . . . . . . . . . . . . . . . Parts Restored . | . . . . . . . . . . . . . . . . . . . . . . . . . . . Kills | -11 -10 -10 -10 -9 -8 -8 -8 -8 -8 -6 -6 -5 -5 -5 -5 -4 -4 -4 -4 -4 -4 -4 -4 -3 -3 -3 ------- Run | Yrd Mat Min Exi Min Mat Gar Sto Gar Rec Fac Gar Fac Was Fac Gar Fac Gar Fac Ext Cet Arc Hub Gar Res Qua Frg Combat Hostiles Destroyed 220 | . 18 4 . 4 14 19 1 21 1 2 22 10 . 1 5 2 41 1 5 1 . 2 5 . 4 37 Melee 1 | . . . . . . . . . . . . . . . . . . . . . . . . . . 1 Guns 10 | . 10 . . . . . . . . . . . . . . . . . . . . . . . . . Cannons 134 | . . 4 . 1 7 12 1 18 1 1 16 6 . 1 3 2 29 1 5 1 . 2 5 . 4 14 AOE 53 | . 8 . . 3 6 5 . . . . 6 4 . . 1 . 8 . . . . . . . . 12 Classes Destroyed 22 | . 4 . . . 4 1 1 3 . 1 2 1 2 . . . 1 1 . . . . . . . 1 Worker 8 | . 3 . . . 2 . . . . . . 2 . 1 . . . . . . . . . . . . Builder 4 | . . . . . . . 1 . . . . . . 1 . . . . 2 . . . . . . . Hauler 3 | . . . . . 2 . 1 . . . . . . . . . . . . . . . . . . . Recycler 4 | . . . . . 1 . 1 . . 1 . 1 . . . . . . . . . . . . . . Operator 11 | . 1 . . . 1 . . . . . . . . . . . . . . . 9 . . . . . Drone 5 | . . . . . . . . . . . . . . . . . . . . . . . . . . 5 Watcher 2 | . . . . . 2 . . . . . . . . . . . . . . . . . . . . . Swarmer 36 | . 9 . . 4 7 6 . 2 . . 5 1 . . 2 . . . . . . . . . . . Cutter 3 | . . . . . . . . . . . 3 . . . . . . . . . . . . . . . Saboteur 1 | . . . . . . . . . . . . 1 . . . . . . . . . . . . . . Grunt 53 | . 9 4 . . 6 6 1 5 . . 3 3 . . 4 . 6 . . . . 1 1 . 1 3 Brawler 8 | . . . . . . . . 2 . . 1 1 . . . . 2 1 . . . . 1 . . . Duelist 7 | . . . . . . 1 . 2 . . 2 2 . . . . . . . . . . . . . . Sentry 25 | . . . . . 2 6 . 6 1 . 2 . . . . . 2 . 2 . . . . . . 4 Specialist 5 | . . . . . . . . . . . . . . . . . . 2 . . . . . . . 3 Hunter 10 | . . . . . . . . 2 . 1 1 . . . . . 2 . 1 . . 2 1 . . . Programmer 30 | . . . . . . . . 3 . . 4 2 . 1 . 2 5 . 2 . . . 2 . 3 6 Heavy 1 | . . . . . . . . . . 1 . . . . . . . . . . . . . . . . Behemoth 2 | . . . . . . . . . . . 1 . . . . . . . . . . . . . . 1 Cetus Guard 1 | . . . . . . . . . . . . . . . . . . . . 1 . . . . . . Hotshot 5 | . . . . . . . . . . . . . . . . . . . . . . . . . . 5 Decapitator 10 | . . . . . . . . . . . . . . . . . . . . . . . . . . 10 Assembled 28 | . . . . . . . . . . . . . . . . . 28 . . . . . . . . . Surgeon 2 | . . . . . . . . . . . . . 2 . . . . . . . . . . . . . Wasp 1 | . . . . . . . . . . . . . 1 . . . . . . . . . . . . . Thug 2 | . . . . . . . . . . . . . . . . . . . 2 . . . . . . . Savage 3 | . . . . . . . . . . . . . 2 . . . . . 1 . . . . . . . Butcher 1 | . . . . . . . . . . . . . . . . . . . . . 1 . . . . . Martyr 2 | . . . . . . . . . . . . . 2 . . . . . . . . . . . . . Best Kill Streak 12 | . 7 2 . 4 8 10 2 3 1 1 6 7 . 1 2 2 12 1 4 1 3 1 2 . 1 6 Combat Bots Only 12 | . 5 2 . 4 5 10 1 3 1 1 6 7 . 1 2 2 12 1 2 1 . 1 2 . 1 6 Max Kills in Single Turn 4 | . 3 1 . 3 4 2 2 2 1 1 1 2 1 1 2 1 1 2 2 1 1 1 1 . 1 2 Gunslinging . | . . . . . . . . . . . . . . . . . . . . . . . . . . . Exploded 3 | . 3 . . 3 3 2 . . . . 1 2 . . 1 . 1 . . . . . . . . 2 Melee 1 | . . . . . . . . . . . . . . . . . . . . . . . . . . 1 Uniques/NPCs Destroyed . | . . . . . . . . . . . . . . . . . . . . . . . . . . . Combat | -11 -10 -10 -10 -9 -8 -8 -8 -8 -8 -6 -6 -5 -5 -5 -5 -4 -4 -4 -4 -4 -4 -4 -4 -3 -3 -3 -------- Run | Yrd Mat Min Exi Min Mat Gar Sto Gar Rec Fac Gar Fac Was Fac Gar Fac Gar Fac Ext Cet Arc Hub Gar Res Qua Frg Hostile Shots Fired 1622 | . 65 10 . 10 69 106 20 73 6 41 188 77 1 6 43 3 274 14 103 15 3 8 74 15 48 350 Missed 463 | . 22 2 . 4 19 31 6 21 3 17 61 20 . 2 5 2 90 2 32 8 1 3 22 1 13 76 Hits 1159 | . 43 8 . 6 50 75 14 52 3 24 127 57 1 4 38 1 184 12 71 7 2 5 52 14 35 274 Melee 84 | . . . . . . 3 . 6 . . 11 6 1 . . . 26 5 1 . . . 5 . . 20 Projectile 1075 | . 43 8 . 6 50 72 14 46 3 24 116 51 . 4 38 1 158 7 70 7 2 5 47 14 35 254 AOE 4 | . . . . . . . . . . . . . . . . 1 . . . . . . . . . 3 Critical Strikes 91 | . . . . . 1 4 1 1 . 3 6 7 . 1 3 . 11 4 2 . . . 5 1 4 37 Actively Blocked 4 | . . . . . . . . . . . 2 . . . . . . . . . . . 2 . . . Part Disruptions 6 | . . . . . . . . . . . . . . . . . 5 . 1 . . . . . . . Damage Taken 26671 | . 461 118 . 58 730 1109 208 913 48 535 2118 1336 40 73 960 78 3905 737 1968 207 74 159 1083 255 670 8828 Core 3135 | . 81 . . . 65 171 30 151 14 77 245 251 . . 118 . 334 13 277 25 . . 28 20 80 1155 Absorbed by Shields 810 | . . . . . . . . . . . . 9 . . 17 . 10 . 42 79 . . 255 134 264 . Reduced by Siege Mode 487 | . . . . . . . . . . . . . . . . . 27 . . . . . 44 . . 416 Redirected to Core 505 | . . . . . . . . . . . . . . . . . . . . . . . . . 68 437 Redirected to Shielding 303 | . . . . . 73 . . . . . . . . . . . . . 89 11 . 11 45 7 67 . Regen/Repaired (Parts) 1089 | . . . . . . . 211 . . . 464 57 . . . . . . . . . . 189 61 107 . Core Remaining (%) 59 | 100 . . . 67 . . . . 21 . 62 . . . 63 . . . . . . . 41 . . . Volleys Fired 1318 | . 51 7 . 4 51 82 14 75 4 54 118 71 80 5 80 8 166 25 122 20 23 26 57 10 59 106 Largest 2 | . 2 2 . 2 2 2 2 2 2 2 2 1 1 1 1 1 2 1 2 2 2 1 1 1 2 2 Hottest 300 | . 100 120 . 120 135 135 143 143 119 119 142 98 98 98 120 98 156 47 180 240 195 105 105 105 226 300 Shots Fired 1628 | . 87 14 . 7 98 124 22 119 6 55 137 71 79 6 78 9 205 24 124 23 24 26 53 10 63 164 Gun 87 | . 72 . . . . . . . . . . . . . . . . . . 1 14 . . . . . Cannon 1228 | . . 14 . 6 94 119 22 113 6 35 110 41 73 5 57 7 183 10 52 21 7 18 36 5 43 151 Launcher 44 | . 4 . . 1 4 5 . . . . 6 4 . . . . 9 . . . . . . . . 11 Special 269 | . 11 . . . . . . 6 . 20 21 26 6 1 21 2 13 14 72 1 3 8 17 5 20 2 Kinetic 172 | . 72 . . . . 6 2 10 2 5 21 . . . 4 . 40 9 1 . . . . . . . Thermal 1127 | . 11 14 . 6 94 113 20 103 4 30 86 40 73 5 51 7 135 1 49 22 21 18 36 5 43 140 Explosive 44 | . 4 . . 1 4 5 . . . . 6 4 . . . . 9 . . . . . . . . 11 Electromagnetic 27 | . . . . . . . . . . . 3 1 . . 2 . 8 . 2 . . . . . . 11 Robot Hit Streak 35 | . 7 15 . 16 17 19 22 13 14 8 13 9 12 2 8 3 10 9 13 2 5 3 8 6 6 35 Robot Miss Streak 6 | . 4 . . 3 4 2 2 4 1 3 2 4 4 1 2 1 4 3 4 3 4 4 3 2 4 6 Penetration Max . | . . . . . . . . . . . . . . . . . . . . . . . . . . . Secondary Targets 2 | . 2 . . . . . . . . . . . . . . . . . . . . . . . . . Max Gunslinging Chain 1 | . 1 . . . . . . . . . . . . . . . . . . . . . . . . . Shots Hit Robots 951 | . 46 12 . 3 67 74 21 67 4 33 75 38 56 4 36 4 101 16 80 8 23 12 33 6 30 102 Core Hits 446 | . 35 6 . 4 30 36 6 27 1 3 40 29 15 3 12 2 58 6 23 2 8 5 9 . 8 78 Critical Kills 14 | . . . . . . 1 . 2 . 1 . . 2 . . . 6 . . . . . . . . 2 Critical Parts Destroyed 1 | . 1 . . . . . . . . . . . . . . . . . . . . . . . . . Critical Strikes 19 | . 1 . . . . 1 . 3 . 1 1 . 2 . . . 7 1 . . . . . . . 2 Meltdown 14 | . . . . . . 1 . 2 . 1 . . 2 . . . 6 . . . . . . . . 2 Destroy 1 | . 1 . . . . . . . . . . . . . . . . . . . . . . . . . Blast 4 | . . . . . . . . 1 . . 1 . . . . . 1 1 . . . . . . . . Melee Attacks 24 | . . . . . . 2 11 . . . . . . . . . . . . . 11 . . . . . Impact . | . . . . . . . . . . . . . . . . . . . . . . . . . . . Slashing 11 | . . . . . . . . . . . . . . . . . . . . . 11 . . . . . Piercing . | . . . . . . . . . . . . . . . . . . . . . . . . . . . Sneak Attacks 14 | . . . . . . . 3 . . . . . . . . . . . . . 11 . . . . . Combat Hostiles . | . . . . . . . . . . . . . . . . . . . . . . . . . . . Follow-up Attacks . | . . . . . . . . . . . . . . . . . . . . . . . . . . . Damage Inflicted 34059 | . 1079 208 . 181 1601 1803 297 1621 122 443 2428 1673 2051 158 1865 86 5340 667 2238 247 1695 316 827 35 665 6413 Guns 942 | . 602 . . . . . . . . . . . . . . . . . . . 340 . . . . . Cannons 22376 | . . 208 . 35 1250 1595 297 1621 108 429 1740 835 2051 118 876 86 4221 136 1082 247 206 307 827 35 665 3401 Explosions 9432 | . 409 . . 144 349 208 . . . . 688 838 . 40 989 . 1111 513 1156 . . . . . . 2987 Melee 1149 | . . . . . . . . . . . . . . . . . . . . . 1149 . . . . . Ramming 160 | . 68 . . 2 2 . . . 14 14 . . . . . . 8 18 . . . 9 . . . 25 Kinetic 2806 | . 602 . . . . 100 . 176 33 29 407 . . . 130 . 1193 136 . . . . . . . . Thermal 21561 | . . 208 . 35 1250 1495 297 1445 75 400 1329 835 2051 118 824 86 3023 468 1599 247 546 307 827 35 665 3396 Explosive 5050 | . 409 . . 144 349 208 . . . . 512 838 . 40 . . 687 . . . . . . . . 1863 Electromagnetic 3333 | . . . . . . . . . . . 180 . . . 911 . 429 45 639 . . . . . . 1129 Impact . | . . . . . . . . . . . . . . . . . . . . . . . . . . . Slashing 1149 | . . . . . . . . . . . . . . . . . . . . . 1149 . . . . . Piercing . | . . . . . . . . . . . . . . . . . . . . . . . . . . . Highest Corruption 70 | . . . . . . . . 1 1 . 4 6 6 6 12 1 37 52 62 70 70 64 66 5 5 56 Average Corruption 21 | . . . . . . . . 1 1 . 3 5 6 6 10 1 15 47 54 65 67 64 65 3 4 27 Corruption Purged 11 | . . . . . . . . . . . . . . . . . . . . . 6 . . 5 . . Corruption Blocked . | . . . . . . . . . . . . . . . . . . . . . . . . . . . Effects 637 | . . . . . . . . 14 11 . 38 3 36 17 55 1 72 40 91 45 34 36 56 . 25 63 Message Errors 135 | . . . . . . . . 3 1 . 12 1 8 6 16 . 13 9 16 7 9 5 15 . 6 8 Matter Fused 142 | . . . . . . . . 2 5 . 6 1 5 6 11 . 18 13 18 12 5 8 16 . 4 12 Heat Flow Errors 61 | . . . . . . . . . 1 . 4 . 1 3 4 . 5 4 11 2 2 2 5 . 5 12 Energy Discharges 71 | . . . . . . . . 2 2 . 5 . 5 1 6 . 9 3 10 5 5 5 1 . 5 7 Parts Rejected 12 | . . . . . . . . . . . 2 1 2 . . . 2 . 1 1 . . 1 . . 2 Parts Fused 3 | . . . . . . . . . . . . . . . . . . . 2 . . . 1 . . . Data Loss (minor) 96 | . . . . . . . . 2 2 . 3 . 6 . 12 . 9 6 17 11 6 9 5 . 3 5 Data Loss (major) 18 | . . . . . . . . 1 . . 1 . 1 . . . 2 1 2 1 1 2 3 . 1 2 Misfires 26 | . . . . . . . . 2 . . 4 . 2 1 . 1 5 1 4 . 1 1 . . 1 3 Alerts 16 | . . . . . . . . 1 . . 1 . 3 . 4 . . 1 3 . 1 . 2 . . . Misdirections 14 | . . . . . . . . . . . . . . . . . 1 . 3 1 1 3 3 . . 2 Weapon Failures 43 | . . . . . . . . 1 . . . . 3 . 2 . 8 2 4 5 3 1 4 . . 10 Overload Shots 1 | . . . . . . . . . . . . . . . . . . . . 1 . . . . . . Overflow Damage 1546 | . 21 . . . 46 5 . 37 . . 36 31 29 . 12 . 293 114 156 . 511 16 32 . 18 189 Projectiles 672 | . . . . . 16 5 . 37 . . 26 7 29 . 12 . 253 . 94 . . 16 32 . 18 127 Explosions 363 | . 21 . . . 30 . . . . . 10 24 . . . . 40 114 62 . . . . . . 62 Melee 511 | . . . . . . . . . . . . . . . . . . . . . 511 . . . . . Knockbacks 21 | . 1 . . . . 1 . 2 . 1 3 . . . 2 . 11 . . . . . . . . . Impact 1 | . 1 . . . . . . . . . . . . . . . . . . . . . . . . . Kinetic 20 | . . . . . . 1 . 2 . 1 3 . . . 2 . 11 . . . . . . . . . Secondary . | . . . . . . . . . . . . . . . . . . . . . . . . . . . Self-Inflicted Damage 1580 | . 33 . . 15 . . . . . . 118 122 . . . . 49 335 245 . . . . . . 663 Shots 31 | . 2 . . 1 . . . . . . 4 3 . . . . 1 6 4 . . . . . . 10 Rammed 18 | . 6 . . 2 . . 1 . 3 2 . . . . . . 1 1 . . . 2 . . . . Targets Rammed 22 | . 8 . . 2 1 . 1 . 3 2 . . . . . . 1 1 . . . 2 . . . 1 Kicked 1 | . 1 . . . . . . . . . . . . . . . . . . . . . . . . . Crushed 3 | . 1 . . . 1 . . . . . . . . . . . . . . . . . . . . 1 Highest Temperature 599 | . 64 153 . 180 112 22 76 252 256 42 323 19 288 226 284 . 203 237 236 80 211 153 218 4 243 599 Average Temperature 63 | . 19 72 . 90 40 6 27 60 70 13 81 8 80 61 62 . 30 111 90 51 131 69 46 3 41 100 Received Heat Transfer 6085 | . 168 66 . . 369 360 108 180 9 84 608 288 . . 216 12 704 36 208 13 9 9 113 31 77 2417 Effects 5 | . . . . . . . . . . . . . 1 . 1 . . . . . . . . . . 3 Shutdowns 2 | . . . . . . . . . . . . . . . . . . . . . . . . . . 2 Interference 2 | . . . . . . . . . . . . . 1 . 1 . . . . . . . . . . . Damage (core) 1 | . . . . . . . . . . . . . . . . . . . . . . . . . . 1 Siege Activations 9 | . . . . . . . . . . . . . . . . . 1 . . . . . 2 . 1 5 Total Turns 212 | . . . . . . . . . . . . . . . . . 21 . . . . . 37 . 2 152 Longest Duration 89 | . . . . . . . . . . . . . . . . . 21 . . . . . 24 . 2 89 Martial Activations . | . . . . . . . . . . . . . . . . . . . . . . . . . . . Shielding Activations . | . . . . . . . . . . . . . . . . . . . . . . . . . . . Robots Disrupted . | . . . . . . . . . . . . . . . . . . . . . . . . . . . Combat Hostiles . | . . . . . . . . . . . . . . . . . . . . . . . . . . . Robots Corrupted 11 | . . . . . . . . . . . . . . . 2 . 2 . . . . . . . . 7 Combat Hostiles 10 | . . . . . . . . . . . . . . . 1 . 2 . . . . . . . . 7 Parts Fried 9 | . . . . . . . . . . . . . . . 2 . 2 . . . . . . . . 5 Impact Corruptions . | . . . . . . . . . . . . . . . . . . . . . . . . . . . Robots Melted 18 | . . . . . 1 2 . 3 . 1 . . 3 . . . 6 . . . . . . . . 2 Combat Hostiles 11 | . . . . . 1 2 . 3 . 1 . . . . . . 2 . . . . . . . . 2 Parts Melted 58 | . . 1 . . 6 5 . 7 1 3 5 1 7 . 2 . 15 . . . . . 2 . 1 2 Heat Transferred 25437 | . . 444 . 74 2590 2496 481 2183 111 592 1827 1250 3100 150 880 100 2820 250 399 185 666 333 756 37 555 3158 Parts Sabotaged . | . . . . . . . . . . . . . . . . . . . . . . . . . . . Parts Stolen . | . . . . . . . . . . . . . . . . . . . . . . . . . . . Parts Stripped . | . . . . . . . . . . . . . . . . . . . . . . . . . . . Power Chain Reactions 4 | . . . . . . . . . . . . . . . 1 . . . 2 . . . . . . 1 Latent Energy Used 2234 | . . . . . . . . . . . 162 200 . . 343 . 374 . 258 . . . . . . 897 LE Corruption 46 | . . . . . . . . . . . 4 3 . . 6 . 11 . 4 . . . . . . 18 Alert | -11 -10 -10 -10 -9 -8 -8 -8 -8 -8 -6 -6 -5 -5 -5 -5 -4 -4 -4 -4 -4 -4 -4 -4 -3 -3 -3 ------- Run | Yrd Mat Min Exi Min Mat Gar Sto Gar Rec Fac Gar Fac Was Fac Gar Fac Gar Fac Ext Cet Arc Hub Gar Res Qua Frg Maximum Alert Level 5 | . 1 . . . . 3 1 4 2 2 4 3 1 1 4 3 5 4 3 2 1 2 4 3 2 2 Low Security (%) 31 | . 92 100 . 100 100 23 17 4 . 42 17 . 92 96 . . . . 46 . 21 19 . . 39 7 Level 1 18 | . 7 . . . . 10 82 6 62 9 18 . 7 3 13 . . . 29 6 78 3 . 42 25 50 Level 2 26 | . . . . . . 53 . 30 37 48 43 70 . . 11 15 16 . 20 93 . 77 10 48 34 41 Level 3 15 | . . . . . . 12 . 51 . . 15 29 . . 39 84 38 92 3 . . . 24 9 . . Level 4 7 | . . . . . . . . 7 . . 5 . . . 34 . 34 7 . . . . 65 . . . Level 5 . | . . . . . . . . . . . . . . . . . 11 . . . . . . . . . High Security . | . . . . . . . . . . . . . . . . . . . . . . . . . . . Max Security . | . . . . . . . . . . . . . . . . . . . . . . . . . . . Peak Influence 1810 | . 255 50 . 98 134 807 393 1157 550 555 1212 753 242 301 1477 781 1810 1143 842 532 284 691 1303 732 503 595 Initial 949 | . . . . . . 48 393 132 520 538 37 636 242 . 210 774 546 949 548 466 158 55 455 732 138 160 Average 457 | . 102 4 . 33 37 435 272 748 355 306 508 618 58 18 949 726 1100 990 250 456 229 514 1095 492 280 370 Influence Increases 16823 | . 554 100 . 98 462 829 167 1125 280 598 1365 473 104 447 1427 167 1654 592 1672 267 286 1114 1008 107 872 1055 Destroy 0b10 Robot/C 7020 | . 360 80 . 80 300 440 80 580 20 80 580 220 . 160 600 40 460 100 660 100 80 440 480 60 380 640 Destroy 0b10 Robot/NC 310 | . 20 . . . 45 5 20 . . 20 . 15 . 10 5 . 15 10 35 10 45 15 . . 15 25 Destroy Leader 786 | . 70 20 . 10 70 20 22 40 . 12 30 30 . 40 60 10 10 32 82 . . 64 40 . 54 70 Allied During Kill 2714 | . . . . . 10 7 8 54 . 5 46 2 . 133 295 10 89 38 710 110 125 490 278 33 271 . Successful Hack 165 | . 21 . . . 8 12 14 6 18 12 . . . 24 14 . . 7 14 . . . 9 6 . . Select Force Hacks 270 | . 30 . . . . . . . 240 . . . . . . . . . . . . . . . . . Disable Machine 810 | . 30 . . . . 30 15 30 . . 30 60 . 30 15 45 15 195 45 15 30 15 . . 105 105 Anti-Garrison Action 2500 | . . . . . . 250 . 400 . . 600 . . . 300 . 800 . . . . . 150 . . . Destroy Structure 1693 | . 23 . . 8 29 50 8 15 2 4 79 146 104 50 93 62 265 210 126 32 6 90 51 8 32 200 Advance Influence 450 | . . . . . . . . . . 450 . . . . . . . . . . . . . . . . Lose Combat Pursuer 105 | . . . . . . 15 . . . 15 . . . . 45 . . . . . . . . . 15 15 Influence Decreases 16228 | . 554 100 . 98 388 96 770 172 1226 755 207 992 797 146 251 863 625 1283 1957 706 523 621 356 1163 833 746 Entered New Map 6487 | . . . . . . 26 414 72 637 123 17 576 451 . 91 703 235 861 571 368 237 103 196 571 109 126 Time Decay 5941 | . 544 100 . 98 308 . 326 . 589 302 . 286 316 48 . 140 . 302 464 318 246 238 . 362 514 440 Search Patrol Dispatched 100 | . . . . . . . . . . 100 . . . . . . . . . . . . . . . . Lost Part 880 | . . . . . 40 30 10 40 . 20 80 130 20 . . . 230 60 30 . . . . . 10 180 Lost Ally 1808 | . 10 . . . 40 40 20 60 . 60 110 . 10 98 160 20 160 60 180 20 40 280 160 80 200 . Purge Threat 1012 | . . . . . . . . . . 150 . . . . . . . . 712 . . . . 150 . . Squads Dispatched 49 | . 3 . . . 3 . . . . 3 . 4 . 3 . 2 . 1 5 . . 7 . 4 11 3 Investigation 7 | . 2 . . . 2 . . . . . . . . . . . . . . . . 1 . 1 1 . Extermination 9 | . . . . . . . . . . . . 1 . . . 1 . 1 . . . 1 . . 3 2 Reinforcement 24 | . 1 . . . 1 . . . . 3 . . . 1 . . . . 5 . . 5 . 3 4 1 Assault 4 | . . . . . . . . . . . . 3 . . . 1 . . . . . . . . . . Garrison 5 | . . . . . . . . . . . . . . 2 . . . . . . . . . . 3 . Intercept . | . . . . . . . . . . . . . . . . . . . . . . . . . . . Searches Triggered 1 | . . . . . . . . . . 1 . . . . . . . . . . . . . . . . Construction Impeded 8 | . . . . . . . . . . . . . . 1 . . . . 3 . . 2 . . 2 . Haulers Reinforced 2 | . . . . . . . . . . . . . . . . . . . . . . . . 1 1 . Active Scanning Responses . | . . . . . . . . . . . . . . . . . . . . . . . . . . . Cargo Convoy Interrupts 1 | . . . . . . . . . . . . . . 1 . . . . . . . . . . . . Stealth | -11 -10 -10 -10 -9 -8 -8 -8 -8 -8 -6 -6 -5 -5 -5 -5 -4 -4 -4 -4 -4 -4 -4 -4 -3 -3 -3 --------- Run | Yrd Mat Min Exi Min Mat Gar Sto Gar Rec Fac Gar Fac Was Fac Gar Fac Gar Fac Ext Cet Arc Hub Gar Res Qua Frg Distress Signals 24 | . . . . . 2 . 2 . . 1 . 1 . . 1 . . . 4 2 . 1 . 6 2 2 Communications Jammed . | . . . . . . . . . . . . . . . . . . . . . . . . . . . Distress Signals . | . . . . . . . . . . . . . . . . . . . . . . . . . . . Times Spotted 538 | . 29 4 . 4 24 26 11 30 1 15 36 26 6 10 36 5 71 11 38 10 12 15 35 12 28 43 Peak Tracking Total 10 | . 4 2 . 4 7 8 3 4 1 3 8 7 3 6 10 3 8 2 6 5 2 3 10 9 4 9 Tactical Retreats 10 | . . . . . . 1 . . . 1 . . 2 . 2 . 2 . . . . . . . 1 1 Traps | -11 -10 -10 -10 -9 -8 -8 -8 -8 -8 -6 -6 -5 -5 -5 -5 -4 -4 -4 -4 -4 -4 -4 -4 -3 -3 -3 ------- Run | Yrd Mat Min Exi Min Mat Gar Sto Gar Rec Fac Gar Fac Was Fac Gar Fac Gar Fac Ext Cet Arc Hub Gar Res Qua Frg Traps Triggered 39 | . . . . . 1 5 1 9 . . 5 1 . . 8 . 1 3 . . . 1 1 1 1 1 Indirectly 3 | . . . . . . . . . . . 2 . . . . . . . . . . . . . . 1 Trap Hack Attempts . | . . . . . . . . . . . . . . . . . . . . . . . . . . . Triggered . | . . . . . . . . . . . . . . . . . . . . . . . . . . . Disarmed . | . . . . . . . . . . . . . . . . . . . . . . . . . . . Reprogrammed . | . . . . . . . . . . . . . . . . . . . . . . . . . . . Reused . | . . . . . . . . . . . . . . . . . . . . . . . . . . . Traps Extracted . | . . . . . . . . . . . . . . . . . . . . . . . . . . . Installed . | . . . . . . . . . . . . . . . . . . . . . . . . . . . Triggered . | . . . . . . . . . . . . . . . . . . . . . . . . . . . Most Traps Carried 2 | . . . . 2 2 1 . . . . . . . . . . . . . . . . . . . . Machines | -11 -10 -10 -10 -9 -8 -8 -8 -8 -8 -6 -6 -5 -5 -5 -5 -4 -4 -4 -4 -4 -4 -4 -4 -3 -3 -3 ---------- Run | Yrd Mat Min Exi Min Mat Gar Sto Gar Rec Fac Gar Fac Was Fac Gar Fac Gar Fac Ext Cet Arc Hub Gar Res Qua Frg Machines Disabled 86 | . 2 . . . . 4 1 5 . . 8 4 . 2 6 3 8 13 6 1 2 1 3 . 7 10 Max in Single Turn 5 | . 2 . . . . 1 1 1 . . 1 3 . 2 1 3 1 5 2 1 . . 1 . 1 2 Garrison Access 2 | . . . . . . . . . . . . . . . . . . . . . . . . . 1 1 Garrison Relay 21 | . . . . . . 2 . 3 . . 4 . . . 4 . 5 . . . . . 3 . . . Energy Cycler 1 | . . . . . . . . . . . . . . . . . . . 1 . . . . . . . Machines Repaired . | . . . . . . . . . . . . . . . . . . . . . . . . . . . Machines Dismantled . | . . . . . . . . . . . . . . . . . . . . . . . . . . . Machines Sabotaged . | . . . . . . . . . . . . . . . . . . . . . . . . . . . Overloaded Fab Kills . | . . . . . . . . . . . . . . . . . . . . . . . . . . . Hacking | -11 -10 -10 -10 -9 -8 -8 -8 -8 -8 -6 -6 -5 -5 -5 -5 -4 -4 -4 -4 -4 -4 -4 -4 -3 -3 -3 --------- Run | Yrd Mat Min Exi Min Mat Gar Sto Gar Rec Fac Gar Fac Was Fac Gar Fac Gar Fac Ext Cet Arc Hub Gar Res Qua Frg Machines Accessed 81 | . 5 . 1 . 3 3 4 3 14 4 1 1 . 2 2 2 2 2 10 1 . 1 2 3 11 4 Terminals 51 | . 4 . . . 2 3 2 3 6 2 1 . . . 2 . 2 2 9 1 . . 2 1 7 2 Fabricators 1 | . . . . . . . . . . . . . . . . 1 . . . . . . . . . . Repair Stations 7 | . . . . . . . 1 . . 1 . . . 1 . . . . 1 . . . . 1 1 1 Recycling Units 9 | . 1 . . . . . . . 8 . . . . . . . . . . . . . . . . . Scanalyzers 4 | . . . . . . . . . . . . 1 . . . . . . . . . . . 1 2 . Garrison Access 8 | . . . . . 1 . 1 . . 1 . . . 1 . 1 . . . . . 1 . . 1 1 Total Hacks 165 | . 10 . 1 . 6 8 10 5 28 8 2 2 . 3 4 2 3 5 23 1 . 1 4 12 22 5 Successful 65 | . 6 . 1 . 3 1 8 1 17 4 1 . . 3 1 1 1 1 5 . . 1 1 4 2 3 Failed 99 | . 4 . . . 3 7 2 4 11 4 1 2 . . 3 1 2 4 18 1 . . 3 7 20 2 Catastrophic 25 | . . . . . . 1 1 1 . 3 . . . . 2 . 1 1 8 1 . . 1 1 4 . Database Lockouts 1 | . . . . . . . . . . . . . . . . . . . . . . . . 1 . . Manual 82 | . 8 . 1 . 5 2 4 . 28 2 . . . 1 . 1 . 3 10 1 . . . 5 9 2 Terminals 120 | . 9 . . . 5 8 4 5 20 6 2 . . . 4 . 3 5 21 1 . . 4 5 16 2 Fabricators 1 | . . . . . . . . . . . . . . . . 1 . . . . . . . . . . Repair Stations 16 | . . . . . . . 4 . . 1 . . . 2 . . . . 2 . . . . 4 1 2 Recycling Units 9 | . 1 . . . . . . . 8 . . . . . . . . . . . . . . . . . Scanalyzers 8 | . . . . . . . . . . . . 2 . . . . . . . . . . . 3 3 . Garrison Access 10 | . . . . . 1 . 2 . . 1 . . . 1 . 1 . . . . . 1 . . 2 1 Terminal Hacks 25 | . 2 . 1 . 1 1 2 1 2 2 1 . . . 1 . 1 . 5 . . . 1 2 1 1 Robot Analysis 3 | . 1 . . . . . 1 . 1 . . . . . . . . . . . . . . . . . Prototype ID Bank 4 | . . . . . . . . . . . . . . . . . . . 3 . . . . . 1 . Open Door 3 | . . . . . . . . 1 . . . . . . . . . . 1 . . . 1 . . . Branch Access Points 1 | . . . . . . . . . . . . . . . . . . . . . . . . 1 . . Emergency Access Points 1 | . . . . . . 1 . . . . . . . . . . . . . . . . . . . . Terminal Index 2 | . 1 . . . . . . . 1 . . . . . . . . . . . . . . . . . Garrison Index 2 | . . . . . 1 . 1 . . . . . . . . . . . . . . . . . . . Unreport Threat 3 | . . . . . . . . . . 1 . . . . . . . . 1 . . . . 1 . . Recall Reinforcements 1 | . . . . . . . . . . 1 . . . . . . . . . . . . . . . . Garrison Registry 2 | . . . . . . . . . . . 1 . . . . . 1 . . . . . . . . . Patrol Navigation 1 | . . . . . . . . . . . . . . . 1 . . . . . . . . . . . Proto ID Catalog 2 | . . . 1 . . . . . . . . . . . . . . . . . . . . . . 1 Fabricator Hacks . | . . . . . . . . . . . . . . . . . . . . . . . . . . . Repair Station Hacks 6 | . . . . . . . 4 . . . . . . 1 . . . . . . . . . 1 . . Scan Component 4 | . . . . . . . 2 . . . . . . 1 . . . . . . . . . 1 . . Repair 2 | . . . . . . . 2 . . . . . . . . . . . . . . . . . . . Recycling Unit Hacks . | . . . . . . . . . . . . . . . . . . . . . . . . . . . Scanalyzer 1 | . . . . . . . . . . . . . . . . . . . . . . . . 1 . . Retrieve Study 1 | . . . . . . . . . . . . . . . . . . . . . . . . 1 . . Garrison Access Hacks 8 | . . . . . 1 . 1 . . 1 . . . 1 . 1 . . . . . 1 . . 1 1 Unlock Access 6 | . . . . . 1 . 1 . . 1 . . . 1 . 1 . . . . . 1 . . . . Seal Access 2 | . . . . . . . . . . . . . . . . . . . . . . . . . 1 1 Unauthorized Hacks 25 | . 4 . . . 1 . 1 . 15 1 . . . 1 . . . 1 . . . . . . . 1 Terminals 12 | . 3 . . . 1 . . . 7 . . . . . . . . 1 . . . . . . . . Assimilate 2 | . 2 . . . . . . . . . . . . . . . . . . . . . . . . . Botnet 2 | . . . . . 1 . . . 1 . . . . . . . . . . . . . . . . . Operators 2 | . 1 . . . . . . . . . . . . . . . . 1 . . . . . . . . Skim 6 | . . . . . . . . . 6 . . . . . . . . . . . . . . . . . Fabricators . | . . . . . . . . . . . . . . . . . . . . . . . . . . . Repair Stations 3 | . . . . . . . . . . 1 . . . 1 . . . . . . . . . . . 1 Mechanics 3 | . . . . . . . . . . 1 . . . 1 . . . . . . . . . . . 1 Recycling Units 9 | . 1 . . . . . . . 8 . . . . . . . . . . . . . . . . . Tunnel 9 | . 1 . . . . . . . 8 . . . . . . . . . . . . . . . . . Scanalyzers . | . . . . . . . . . . . . . . . . . . . . . . . . . . . Garrison Access 1 | . . . . . . . 1 . . . . . . . . . . . . . . . . . . . Restock 1 | . . . . . . . 1 . . . . . . . . . . . . . . . . . . . Data Cores Recovered 2 | . . . . . . . 1 . . 1 . . . . . . . . . . . . . . . . Used . | . . . . . . . . . . . . . . . . . . . . . . . . . . . Hacking Detections 59 | . 3 . . . 2 3 3 2 5 3 1 1 . 1 2 2 1 2 9 . . 1 1 3 11 3 Full Trace Events 4 | . . . . . . 1 . 1 1 . . . . . . . . . . . . . . . 1 . Feedback Events . | . . . . . . . . . . . . . . . . . . . . . . . . . . . Feedback Blocked . | . . . . . . . . . . . . . . . . . . . . . . . . . . . Robot Schematics Acquired 2 | . . . . . . . . . . . . . . . . . . . . . . . . . 2 . Robots Built . | . . . . . . . . . . . . . . . . . . . . . . . . . . . Authchips . | . . . . . . . . . . . . . . . . . . . . . . . . . . . Time . | . . . . . . . . . . . . . . . . . . . . . . . . . . . Total Robot Build Rating . | . . . . . . . . . . . . . . . . . . . . . . . . . . . Part Schematics Acquired 10 | . . . . . . . . . . . . . . . . . . . . . . . . . 10 . Parts Built . | . . . . . . . . . . . . . . . . . . . . . . . . . . . Authchips . | . . . . . . . . . . . . . . . . . . . . . . . . . . . Time . | . . . . . . . . . . . . . . . . . . . . . . . . . . . Total Part Build Rating . | . . . . . . . . . . . . . . . . . . . . . . . . . . . Part Studies Acquired 1 | . . . . . . . . . . . . . . . . . . . . . . . . 1 . . Parts Repaired 2 | . . . . . . . 2 . . . . . . . . . . . . . . . . . . . Time 76 | . . . . . . . 76 . . . . . . . . . . . . . . . . . . . Parts Recycled . | . . . . . . . . . . . . . . . . . . . . . . . . . . . Recycled Matter . | . . . . . . . . . . . . . . . . . . . . . . . . . . . Retrieved Matter . | . . . . . . . . . . . . . . . . . . . . . . . . . . . Retrieved Components . | . . . . . . . . . . . . . . . . . . . . . . . . . . . Parts Scanalyzed . | . . . . . . . . . . . . . . . . . . . . . . . . . . . Part Schematics Acquired . | . . . . . . . . . . . . . . . . . . . . . . . . . . . Parts Damaged . | . . . . . . . . . . . . . . . . . . . . . . . . . . . Bothacking | -11 -10 -10 -10 -9 -8 -8 -8 -8 -8 -6 -6 -5 -5 -5 -5 -4 -4 -4 -4 -4 -4 -4 -4 -3 -3 -3 ------------ Run | Yrd Mat Min Exi Min Mat Gar Sto Gar Rec Fac Gar Fac Was Fac Gar Fac Gar Fac Ext Cet Arc Hub Gar Res Qua Frg Used RIF Installer 8 | . . . . . . 2 . 1 . . 1 . . . . . 2 . . . . . 2 . . . Hotswap 1 | . . . . . . . . 1 . . . . . . . . . . . . . . . . . . Command Fork 1 | . . . . . . . . . . . . . . . . . . . . . . . 1 . . . Robot Detection 1 | . . . . . . 1 . . . . . . . . . . . . . . . . . . . . Patrol Navigation 1 | . . . . . . . . . . . . . . . . . . . . . . . 1 . . . Structural Interface 1 | . . . . . . . . . . . . . . . . . 1 . . . . . . . . . Autoassimilate 2 | . . . . . . . . . . . 1 . . . . . 1 . . . . . . . . . Robots Hacked 163 | . . . . . . 2 5 6 . 9 12 12 5 1 11 2 9 12 25 4 2 5 15 7 17 2 Non-combat 38 | . . . . . . . 1 . . 3 1 7 . . . 2 . 5 9 . 2 . 2 2 3 1 Combat 125 | . . . . . . 2 4 6 . 6 11 5 5 1 11 . 9 7 16 4 . 5 13 5 14 1 Autoassimilated 30 | . . . . . . . . . . . 1 1 . 1 3 . 2 3 6 3 . 2 3 2 3 . Robot Hacks Applied 156 | . . . . . . 2 5 6 . 15 11 13 5 . 9 2 7 10 26 1 3 3 14 5 17 2 parse_system 10 | . . . . . . . . . . . 1 . . . 2 . . . 4 . 3 . . . . . no_distress 2 | . . . . . . . . . . . . 1 . . . . . . . . . . 1 . . . find_chute 2 | . . . . . . . . . . . . 1 . . . 1 . . . . . . . . . . deconstruct_machine 2 | . . . . . . . . . . . . . . . . . . 1 . . . . . 1 . . ignore_repairs 2 | . . . . . . . 1 . . . . . . . . . . . 1 . . . . . . . map_walls 1 | . . . . . . . . . . 1 . . . . . . . . . . . . . . . . randomize_corridors 2 | . . . . . . . . . . . . . . . . . . 1 1 . . . . . . . drop_inventory 7 | . . . . . . . . . . . . . . . . . . 1 4 . . . . 1 1 . recall_reinforcements 1 | . . . . . . . . . . . . . . . . . . . . . . . . . 1 . ignore_parts 4 | . . . . . . . . . . 1 . 1 . . . . . 2 . . . . . . . . purge_threat 7 | . . . . . . . . . . . . . . . . . . . 7 . . . . . . . map_route 8 | . . . . . . . . . . 1 . 2 . . . 1 . 1 . . . . . . 2 1 mark_security 1 | . . . . . . . . . . 1 . . . . . . . . . . . . . . . . redirect_shields 1 | . . . . . . . . . . . . 1 . . . . . . . . . . . . . . locate_prototypes 1 | . . . . . . . . . . . . . . . . . . . . . . . . . 1 . ignore_targets 5 | . . . . . . . . . . . . . 5 . . . . . . . . . . . . . find_garrison 2 | . . . . . . . . . . 1 . 1 . . . . . . . . . . . . . . link_fov 1 | . . . . . . . . . . . . 1 . . . . . . . . . . . . . . focus_fire 1 | . . . . . . . . . . . . . . . . . . . . . . . . . 1 . scatter_targeting 7 | . . . . . . . 1 3 . 2 . . . . . . . . 1 . . . . . . . broadcast_data 2 | . . . . . . . . . . . 1 . . . . . . . . . . . 1 . . . disrupt_area 5 | . . . . . . . . . . . 1 . . . 1 . . . 1 1 . . . . 1 . overload_power 1 | . . . . . . . . . . . . . . . . . . . 1 . . . . . . . amplify_resonance 19 | . . . . . . . . 1 . 1 2 3 . . 2 . 2 . . . . . 3 3 2 . wipe_record 1 | . . . . . . . . . . 1 . . . . . . . . . . . . . . . . disable_weapons 1 | . . . . . . . . . . . . . . . . . . . . . . . . . 1 . reboot_system 3 | . . . . . . . . . . 1 1 . . . . . . . 1 . . . . . . . go_dormant 1 | . . . . . . . . . . . . . . . . . . . . . . . . . 1 . overwrite_iff 26 | . . . . . . . . 2 . 4 2 1 . . . . 3 1 2 . . 3 4 . 3 1 formatsys_low 8 | . . . . . . . . . . . 1 1 . . . . . . 2 . . . 2 . 2 . formatsys_high 22 | . . . . . . 2 3 . . 1 2 . . . 4 . 2 3 1 . . . 3 . 1 . Relay Couplers Released 88 | . . . . . . 8 3 13 . . 16 . . . 13 . 24 . . . . . 11 . . . Machine Destruction 82 | . . . . . . 8 . 13 . . 16 . . . 13 . 21 . . . . . 11 . . . Programmers 6 | . . . . . . . 3 . . . . . . . . . 3 . . . . . . . . . Attached 48 | . . . . . . 2 3 2 . 3 4 2 . . 7 . 12 2 1 1 . . 5 2 2 . Fabnet Peak Effective % . | . . . . . . . . . . . . . . . . . . . . . . . . . . . Robots Rewired 25 | . . . . . . . . . . . 2 . . . 1 . 6 . 16 . . . . . . . Allies Hacked 9 | . . . . . . . . . . . 1 . . . . . 1 . 1 . . 2 . . 4 . Hacks Repelled . | . . . . . . . . . . . . . . . . . . . . . . . . . . . Allies | -11 -10 -10 -10 -9 -8 -8 -8 -8 -8 -6 -6 -5 -5 -5 -5 -4 -4 -4 -4 -4 -4 -4 -4 -3 -3 -3 -------- Run | Yrd Mat Min Exi Min Mat Gar Sto Gar Rec Fac Gar Fac Was Fac Gar Fac Gar Fac Ext Cet Arc Hub Gar Res Qua Frg Total Allies 150 | . 1 . . 3 . 2 3 3 . 5 8 3 19 1 10 . 13 7 31 8 . 5 14 2 10 2 Largest Group 22 | . 1 . . 3 3 2 2 3 . 3 4 1 19 8 6 3 5 4 20 22 22 18 10 9 11 2 Highest-Rated Group 1388 | . 10 . . 40 40 30 30 61 . 56 116 29 684 341 348 208 252 261 962 1388 1385 1125 526 390 472 94 Highest-Rated Ally 159 | . 10 . . 16 16 15 15 31 . 41 99 29 50 46 119 110 68 116 159 151 148 96 96 58 56 47 Total Orders 21 | . 2 . . . . . 2 . . . 3 1 . . 6 . 2 . . . . . 2 1 2 . STAY 7 | . 1 . . . . . 1 . . . 1 . . . 3 . 1 . . . . . . . . . FOLLOW 7 | . 1 . . . . . 1 . . . . . . . 3 . 1 . . . . . . . 1 . AID 7 | . . . . . . . . . . . 2 1 . . . . . . . . . . 2 1 1 . Ally Attacks 1168 | . . . . . 39 10 13 33 . 17 37 5 131 29 110 6 72 16 226 46 28 97 80 27 146 . Total Damage 37369 | . . . . . 370 250 331 524 . 429 1042 95 5112 828 3974 220 2233 678 7509 1735 904 3375 2903 935 3922 . Kills 210 | . . . . . 2 3 4 8 . 5 8 1 10 7 28 . 15 6 36 7 4 23 22 3 18 . Allies Corrupted 6 | . . . . . . . . . . . 2 . . . 1 . . 1 . . . 1 . . 1 . Allies Melted 5 | . . . . . . . . . . . . . 3 . . . 1 . . . . . . . 1 . Intel | -11 -10 -10 -10 -9 -8 -8 -8 -8 -8 -6 -6 -5 -5 -5 -5 -4 -4 -4 -4 -4 -4 -4 -4 -3 -3 -3 ------- Run | Yrd Mat Min Exi Min Mat Gar Sto Gar Rec Fac Gar Fac Was Fac Gar Fac Gar Fac Ext Cet Arc Hub Gar Res Qua Frg Active Infowar (turns) 2952 | . 1292 890 751 14 . . . . . . . . . . 2 . . . . . . . . 3 . . Optics 3 | . . . . . . . . . . . . . . . . . . . . . . . . 3 . . Seismic 2947 | . 1292 890 751 14 . . . . . . . . . . . . . . . . . . . . . . Spoofing 2 | . . . . . . . . . . . . . . . 2 . . . . . . . . . . . Robot Analysis Total 3 | . 1 . . . . . 1 . 1 . . . . . . . . . . . . . . . . . Derelict Logs Recovered 2 | . . 1 . 1 . . . . . . . . . . . . . . . . . . . . . . Drone Launches . | . . . . . . . . . . . . . . . . . . . . . . . . . . . Drone Recoveries . | . . . . . . . . . . . . . . . . . . . . . . . . . . . Exploration | -11 -10 -10 -10 -9 -8 -8 -8 -8 -8 -6 -6 -5 -5 -5 -5 -4 -4 -4 -4 -4 -4 -4 -4 -3 -3 -3 ------------- Run | Yrd Mat Min Exi Min Mat Gar Sto Gar Rec Fac Gar Fac Was Fac Gar Fac Gar Fac Ext Cet Arc Hub Gar Res Qua Frg Turns Passed 28588 | . 1756 1101 751 296 1082 1666 723 1955 1845 666 2262 631 1372 735 1579 296 1773 668 1416 710 527 500 931 835 1416 1096 Spaces Moved 11300 | 1 716 383 312 114 361 566 221 688 705 257 694 209 499 271 706 179 663 355 688 281 193 226 441 460 711 400 Core 2 | . . . . . . . . . . . . 2 . . . . . . . . . . . . . . Treads 10315 | . 557 383 312 114 361 566 221 688 705 257 694 141 . 13 706 179 663 355 688 281 193 226 441 460 711 400 Legs 161 | 1 159 . . . . . . . . . . 1 . . . . . . . . . . . . . . Wheels 820 | . . . . . . . . . . . . 63 499 258 . . . . . . . . . . . . Hover 2 | . . . . . . . . . . . . 2 . . . . . . . . . . . . . . Flight . | . . . . . . . . . . . . . . . . . . . . . . . . . . . Fastest Speed 120 | 120 120 240 240 240 240 240 240 240 240 160 240 135 135 170 152 152 152 160 160 160 160 160 160 160 160 162 Average Speed 202 | 120 213 240 240 240 241 244 240 240 240 201 241 230 226 257 188 152 171 165 160 160 160 160 160 160 160 163 Slowest Speed 1650 | 120 240 240 240 240 245 245 320 240 240 240 243 1650 260 260 246 152 240 240 240 160 160 240 160 160 163 245 Overloaded Moves . | . . . . . . . . . . . . . . . . . . . . . . . . . . . Propulsion Burnouts . | . . . . . . . . . . . . . . . . . . . . . . . . . . . Robots Hopped . | . . . . . . . . . . . . . . . . . . . . . . . . . . . Potential Cave-ins 17 | . . . . . . . . . . . . . . . . . 4 . . . . . . . . 13 Cave-ins Triggered 2 | . . . . . . . . . . . . . . . . . . . . . . . . . . 2 Exploration Rate (%) 48 | 2 76 28 70 27 39 60 37 76 94 7 74 11 96 8 80 10 65 11 84 70 74 30 72 12 82 18 Regions Visited 26 Branch Regions 11 Pre-discovered Areas 13 | . 1 . . 2 . . . . 10 . . . . . . . . . . . . . . . . . Known Exits Taken 8 | . . . . . 1 . 1 . . 1 . . . 1 . 1 . 1 . . . 1 . 1 . . Unknown Exits Taken 10 | 1 1 1 1 1 . . . . 1 . . . . . . . . . 1 1 1 . . . 1 . Scrap Searched 2 | . . 1 . 1 . . . . . . . . . . . . . . . . . . . . . . Spaces Dug 117 | . 21 . . . 7 . 2 . . 2 4 4 . . 12 3 3 . 3 6 . 2 . 1 4 43 Terrain Destroyed 770 | . 22 . . 8 26 5 6 . 2 2 12 101 11 23 15 29 184 60 55 13 1 9 8 3 18 157 Melee . | . . . . . . . . . . . . . . . . . . . . . . . . . . . Projectile 232 | . 4 . . . 1 . 6 . 2 2 4 13 11 1 6 4 38 3 19 13 1 9 8 3 18 66 AOE 538 | . 18 . . 8 25 5 . . . . 8 88 . 22 9 25 146 57 36 . . . . . . 91 Terrain Rammed . | . . . . . . . . . . . . . . . . . . . . . . . . . . . Walls Destroyed . | . . . . . . . . . . . . . . . . . . . . . . . . . . . Machines Disabled . | . . . . . . . . . . . . . . . . . . . . . . . . . . . Actions | -11 -10 -10 -10 -9 -8 -8 -8 -8 -8 -6 -6 -5 -5 -5 -5 -4 -4 -4 -4 -4 -4 -4 -4 -3 -3 -3 --------- Run | Yrd Mat Min Exi Min Mat Gar Sto Gar Rec Fac Gar Fac Was Fac Gar Fac Gar Fac Ext Cet Arc Hub Gar Res Qua Frg Total 15508 | . 824 552 317 128 476 732 379 891 849 358 1161 302 664 305 892 198 1100 423 936 512 369 342 628 556 947 667 Wait 1647 | . . 157 . . 12 18 87 55 135 15 231 1 79 9 28 . 120 15 20 193 132 82 71 15 108 64 Move 11277 | . 715 382 311 113 361 565 220 687 704 257 693 209 498 271 705 178 662 354 687 280 192 226 440 459 710 398 Hop . | . . . . . . . . . . . . . . . . . . . . . . . . . . . Pick Up 285 | . 18 1 3 3 12 17 9 20 . 12 27 2 4 4 14 4 26 12 19 5 . 1 15 18 22 17 Fast Attach 136 | . 7 1 . . 8 6 9 1 . . 11 4 3 6 11 . 19 2 2 3 4 2 8 11 8 10 Attach 105 | . 1 . . . 4 5 2 4 . 6 7 9 . 1 2 2 17 5 7 . . . 4 4 3 22 Detach 34 | . 4 . . . . 3 . . . . 2 4 . . 4 . 3 . 2 . 1 . 3 2 1 5 Swap 212 | . 11 2 . 3 11 11 16 13 2 9 26 1 . . 17 2 8 2 10 4 3 . 10 13 9 29 Drop 286 | . 9 2 3 3 16 21 10 22 1 3 26 1 . 9 24 4 21 7 10 7 3 3 17 24 27 13 Fire 1318 | . 51 7 . 4 51 82 14 75 4 54 118 71 80 5 80 8 166 25 122 20 23 26 57 10 59 106 Melee 24 | . . . . . . 2 11 . . . . . . . . . . . . . 11 . . . . . Ram . | . . . . . . . . . . . . . . . . . . . . . . . . . . . Kick 1 | . 1 . . . . . . . . . . . . . . . . . . . . . . . . . Crush 21 | . 7 . . 2 1 . 1 . 3 2 . . . . . . 1 1 . . . 2 . . . 1 Escape Stasis 32 | . . . . . . 2 . 14 . . 4 . . . 6 . 2 . . . . . 2 . . 2 Rewire 130 | . . . . . . . . . . . 16 . . . 1 . 55 . 57 . . . 1 . . . Trap . | . . . . . . . . . . . . . . . . . . . . . . . . . . . Miscellaneous . | . . . . . . . . . . . . . . . . . . . . . . . . . . . Route ------- -11/Scrapyard -10/Materials (discovered 3 exits: [*Mat x2] / [*Min]) -10/Mines (discovered 2 exits: [*Mat] / *Exi) -10/Exiles -9/Mines -8/Materials (discovered 3 exits: [*Fac] / *Sto / Gar) -8/Garrison (discovered 2 exits: *Sto x2) -8/Storage -8/Garrison (discovered 3 exits: *Rec x3) -8/Recycling (discovered 2 exits: *Fac / Scr) -6/Factory (discovered 3 exits: Fac / Low / Gar) -6/Garrison (discovered 3 exits: *Fac x3) -5/Factory (discovered 2 exits: *Fac / [Upp]) -5/Waste -5/Factory -5/Garrison (discovered 3 exits: *Fac x3) -4/Factory (discovered 3 exits: *Res / Ext / Gar) -4/Garrison (discovered 3 exits: *Fac x3) -4/Factory (discovered 3 exits: [*Upp x2] / *Ext) -4/Extension (discovered 3 exits: *Res x2 / *Cet) -4/Cetus (discovered 2 exits: *Res / [*Arc]) -4/Archives (discovered 3 exits: *Res / *Hub x2) -4/Hub_04(d) (discovered 2 exits: *Res / Gar) -4/Garrison (discovered 2 exits: *Res x2) -3/Research (discovered 3 exits: [*Res] / *Qua x2) -3/Quarantine (discovered 3 exits: [*Res] / [*Sec] / *Frg) -3/Protoforge (discovered 1 exit: [*Res]) History --------- Turn | Location | Event 1 | -11/Scrapyard | Discovered new exit (range 0) 1 | -11/Scrapyard | Entered Materials 140 | -10/Materials | Discovered new exit (range 16) 306 | -10/Materials | Build established: Mutant 1007 | -10/Materials | Discovered new exit (range 16) 1185 | -10/Materials | Discovered new exit (range 11) 1757 | -10/Materials | Entered Mines 1898 | -10/Mines | Learned Materials emergency access door positions 2512 | -10/Mines | Deemed a non-threat by the Exiles lab entrance 2512 | -10/Mines | Discovered new exit (range 5) 2680 | -10/Mines | Discovered new exit (range 16) 2684 | -10/Mines | Assembled infested the area 2858 | -10/Mines | Entered Exiles 2916 | -10/Exiles | Met 8R-AWN 2954 | -10/Exiles | Met EX-HEX 3031 | -10/Exiles | Met EX-BIN 3065 | -10/Exiles | Aligned with FarCom system 3067 | -10/Exiles | Given EX-Vault access code 3127 | -10/Exiles | Opened EX-Vault 3148 | -10/Exiles | Found Modified TNC 3154 | -10/Exiles | Found PSU Rigger 3167 | -10/Exiles | Found Latent Energy Streamer 3218 | -10/Exiles | Warned to stay clear of 0b10 Research branches 3283 | -10/Exiles | Met EX-DEC 3583 | -10/Exiles | Discovered new exit (range 10) 3609 | -10/Exiles | Stole three prototypes: Modified TNC, PSU Rigger, Latent Energy Streamer 3609 | -10/Exiles | Entered Mines 3674 | -9/Mines | Learned location of Storage (-8) 3733 | -9/Mines | Assisted by bots powering up and referring to "LRC-V3" 3755 | -9/Mines | Found a hidden stash of uninstalled traps 3834 | -9/Mines | Discovered new exit (range 4) 3905 | -9/Mines | Entered Materials 3905 | -8/Materials | Accompanied by 3 allies 3905 | -8/Materials | Evolved 4 slots: Utility x4 4270 | -8/Materials | Lost 3 parts (1p1n1u) 4321 | -8/Materials | Discovered new exit (range 7) 4546 | -8/Materials | Build established: Scavenger-Mutant 4571 | -8/Materials | Discovered new exit (range 5) 4987 | -8/Materials | Identified exit to Garrison 4987 | -8/Materials | Entered Garrison 5360 | -8/Garrison | Triggered checkpoint 5445 | -8/Garrison | Destroyed 10 combat bots 5606 | -8/Garrison | Garrison Relay disabled 5908 | -8/Garrison | Discovered new exit (range 11) 5932 | -8/Garrison | Installed Relay Interface Framework 6209 | -8/Garrison | Triggered checkpoint 6237 | -8/Garrison | Triggered checkpoint 6275 | -8/Garrison | Expanded RIF knowledge: Robot Detection 6321 | -8/Garrison | Discovered new exit (range 11) 6417 | -8/Garrison | Build established: Bothacker-Mutant 6424 | -8/Garrison | Triggered checkpoint 6510 | -8/Garrison | Garrison Relay disabled 6653 | -8/Garrison | Entered Storage 6655 | -8/Storage | FarCom data flow suspended 7051 | -8/Storage | Repaired Imp. Light Armor Plating 7091 | -8/Storage | Repaired Hvy. Particle Cannon 7351 | -8/Storage | Identified exit to Garrison 7376 | -8/Storage | Entered Garrison 7376 | -8/Garrison | Accompanied by 2 allies 7417 | -8/Garrison | Rescued a captive Derelict 7538 | -8/Garrison | Triggered checkpoint 7605 | -8/Garrison | Expanded RIF knowledge: Hotswap 7647 | -8/Garrison | Triggered checkpoint 7742 | -8/Garrison | Triggered checkpoint 7906 | -8/Garrison | Discovered new exit (range 14) 7912 | -8/Garrison | Triggered checkpoint 7920 | -8/Garrison | Core integrity fell below 50% 8142 | -8/Garrison | Triggered checkpoint 8212 | -8/Garrison | Garrison Relay disabled 8559 | -8/Garrison | Discovered new exit (range 10) 8730 | -8/Garrison | Triggered checkpoint 8816 | -8/Garrison | Garrison Relay disabled 9126 | -8/Garrison | Triggered checkpoint 9167 | -8/Garrison | Garrison Relay disabled 9306 | -8/Garrison | Discovered new exit (range 8) 9331 | -8/Garrison | Entered Recycling 9715 | -8/Recycling | Discovered new exit (range 13) 9930 | -8/Recycling | Scanned before Scraplab entrance 10816 | -8/Recycling | Learned location of Lower Caves (-7) 10878 | -8/Recycling | Learned 4 Lower Caves zone layouts 10893 | -8/Recycling | Learned location of 1 exit from Extension 10898 | -8/Recycling | Learned location of 1 exit from Extension 10900 | -8/Recycling | Identified exit to Scraptown 10901 | -8/Recycling | Learned location of Lower Caves (-6) 10909 | -8/Recycling | Learned location of 2 exits from Factory 10925 | -8/Recycling | Learned Storage stockpile data 11176 | -8/Recycling | Entered Factory 11176 | -6/Factory | Evolved 4 slots: Power x1, Propulsion x2, Utility x1 11177 | -6/Factory | Identified exit to Lower Caves 11177 | -6/Factory | Identified exit to Factory 11526 | -6/Factory | Search patrols dispatched 11842 | -6/Factory | Identified exit to Garrison 11842 | -6/Factory | Entered Garrison 12004 | -6/Garrison | Triggered checkpoint 12146 | -6/Garrison | Garrison Relay disabled 12317 | -6/Garrison | Spotted B-75 Beast 12326 | -6/Garrison | Triggered checkpoint 12336 | -6/Garrison | Triggered checkpoint 12365 | -6/Garrison | Destroyed B-75 Beast 12387 | -6/Garrison | Lost 4 parts (1n3u) 12578 | -6/Garrison | Triggered checkpoint 12665 | -6/Garrison | Garrison Relay disabled 12767 | -6/Garrison | Discovered exit to Factory (range 3) 12829 | -6/Garrison | Discovered exit to Factory (range 63) 12829 | -6/Garrison | Discovered exit to Factory (range 66) 12829 | -6/Garrison | Discovered exit to Factory (range 10) 13098 | -6/Garrison | Triggered checkpoint 13175 | -6/Garrison | Expanded RIF knowledge: Autoassimilate 13279 | -6/Garrison | Found Relay Coupler [Proto] 13282 | -6/Garrison | Found Relay Coupler [Proto] 13306 | -6/Garrison | Found Relay Coupler [Proto] 13309 | -6/Garrison | Found Relay Coupler [Proto] 13469 | -6/Garrison | Build established: Botlord-Mutant 13509 | -6/Garrison | Lost 3 parts (1p1n1u) 13695 | -6/Garrison | Rewired Striker 13768 | -6/Garrison | Triggered checkpoint 13823 | -6/Garrison | Garrison Relay disabled 13861 | -6/Garrison | Garrison Relay disabled 14104 | -6/Garrison | Entered Factory 14104 | -5/Factory | Evolved 2 slots: Utility x2 14404 | -5/Factory | First assault squad dispatched 14545 | -5/Factory | Destroyed 7 combat bots 14560 | -5/Factory | Lost 11 parts (2p4n3u2w) 14573 | -5/Factory | Discovered new exit (range 8) 14681 | -5/Factory | Discovered new exit (range 60) 14735 | -5/Factory | Sucked down chute 14735 | -5/Factory | Entered Waste 14740 | -5/Waste | 1 allies followed down the chute 14780 | -5/Waste | Spotted C-40 Crusher 14787 | -5/Waste | Spotted C-40 Crusher 14809 | -5/Waste | Spotted C-40 Crusher 14841 | -5/Waste | Spotted C-40 Crusher 14859 | -5/Waste | Spotted C-40 Crusher 14874 | -5/Waste | Spotted C-40 Crusher 14915 | -5/Waste | Crushed by Compactor (2 parts destroyed) 14981 | -5/Waste | Warlord forces began an assault 15217 | -5/Waste | Allies destroyed C-40 Crusher 15340 | -5/Waste | Discovered new exit (range 15) 16008 | -5/Waste | Murdered 3 allies 16107 | -5/Waste | Entered Factory 16107 | -5/Factory | Accompanied by 8 allies 16695 | -5/Factory | Cargo convoy interrupted 16842 | -5/Factory | Identified exit to Garrison 16842 | -5/Factory | Entered Garrison 16842 | -5/Garrison | Accompanied by 4 allies 16843 | -5/Garrison | Found embedded Infiltrators 16867 | -5/Garrison | Lost 4 allies 16924 | -5/Garrison | Triggered checkpoint 16939 | -5/Garrison | Garrison Relay disabled 17040 | -5/Garrison | Spotted B-75 Beast 17056 | -5/Garrison | Triggered checkpoint 17056 | -5/Garrison | Triggered checkpoint 17060 | -5/Garrison | Allies destroyed B-75 Beast 17103 | -5/Garrison | Lost 4 allies 17154 | -5/Garrison | Triggered checkpoint 17194 | -5/Garrison | Discovered new exit (range 8) 17216 | -5/Garrison | Triggered checkpoint 17218 | -5/Garrison | System corruption reached 10% 17247 | -5/Garrison | Garrison Relay disabled 17388 | -5/Garrison | Spotted Executioner 17403 | -5/Garrison | Assimilated Executioner with formatsys_high 17419 | -5/Garrison | Rewired Striker 17818 | -5/Garrison | Discovered new exit (range 7) 17866 | -5/Garrison | Triggered checkpoint 17971 | -5/Garrison | Garrison Relay disabled 18108 | -5/Garrison | Triggered checkpoint 18208 | -5/Garrison | Triggered checkpoint 18238 | -5/Garrison | Garrison Relay disabled 18315 | -5/Garrison | Discovered new exit (range 3) 18421 | -5/Garrison | Entered Factory 18421 | -4/Factory | Accompanied by 3 allies 18421 | -4/Factory | Evolved 2 slots: Utility x2 18422 | -4/Factory | Identified exit to Extension 18671 | -4/Factory | First assault squad dispatched 18674 | -4/Factory | Discovered new exit (range 16) 18709 | -4/Factory | Identified exit to Garrison 18717 | -4/Factory | Entered Garrison 18717 | -4/Garrison | Accompanied by 2 allies 18735 | -4/Garrison | Triggered checkpoint 18771 | -4/Garrison | Triggered checkpoint 18805 | -4/Garrison | Garrison Relay disabled 19065 | -4/Garrison | Assembled breached garrison interior 19266 | -4/Garrison | Lost 3 allies 19275 | -4/Garrison | Garrison Relay disabled 19337 | -4/Garrison | System corruption reached 10% 19385 | -4/Garrison | Lost 6 parts (1p5u) 19437 | -4/Garrison | Expanded RIF knowledge: Structural Interface 19475 | -4/Garrison | Garrison Relay disabled 19562 | -4/Garrison | Lost 7 parts (1p2n2u2w) 19700 | -4/Garrison | Discovered new exit (range 10) 19736 | -4/Garrison | Discovered new exit (range 11) 19736 | -4/Garrison | Discovered new exit (range 54) 19736 | -4/Garrison | Discovered new exit (range 42) 20099 | -4/Garrison | System corruption reached 30% 20132 | -4/Garrison | Lost 4 parts (1p2u1w) 20146 | -4/Garrison | Destroyed 12 combat bots 20385 | -4/Garrison | Expanded RIF knowledge: Autoassimilate 20420 | -4/Garrison | Garrison Relay disabled 20490 | -4/Garrison | Entered Factory 20490 | -4/Factory | Accompanied by 2 allies 20544 | -4/Factory | Discovered new exit (range 15) 20770 | -4/Factory | Lost 5 parts (1n4u) 20817 | -4/Factory | Spotted B-86 Titan 20824 | -4/Factory | Assimilated Titan 7a with formatsys_high 20946 | -4/Factory | Discovered new exit (range 14) 21032 | -4/Factory | Discovered exit to Extension (range 16) 21158 | -4/Factory | Entered Extension 21158 | -4/Extension | Accompanied by 4 allies 21159 | -4/Extension | Identified exit to Research 21542 | -4/Extension | Rescued a captive Derelict 21621 | -4/Extension | P-70 Sage assimilated allied MU-LPR(b) 22022 | -4/Extension | Spotted B-86 Titan 22044 | -4/Extension | Allies destroyed B-86 Titan 22046 | -4/Extension | Spotted B-86 Titan 22061 | -4/Extension | Allies destroyed B-86 Titan 22191 | -4/Extension | Energy Cycler disabled 22191 | -4/Extension | Rescued a captive Derelict 22191 | -4/Extension | Rescued a captive Derelict 22191 | -4/Extension | Rescued a captive Derelict 22193 | -4/Extension | Rescued a captive Derelict 22194 | -4/Extension | Rescued a captive Derelict 22194 | -4/Extension | Rescued a captive Derelict 22195 | -4/Extension | Rescued a captive Derelict 22196 | -4/Extension | Rescued A7 22488 | -4/Extension | Discovered new exit (range 7) 22510 | -4/Extension | Disrupted transfer network 22517 | -4/Extension | Core integrity fell below 50% 22547 | -4/Extension | Lost 4 allies 22574 | -4/Extension | Entered Cetus 22574 | -4/Cetus | Accompanied by 16 allies (A7) 22579 | -4/Cetus | Acquired a Cetus Manufacturing Module code from A7 22595 | -4/Cetus | Spotted Cetus Guard 22595 | -4/Cetus | Spotted Cetus Guard 22596 | -4/Cetus | Autoassimilated Cetus Guard with RIF 22596 | -4/Cetus | Spotted Cetus Guard 22600 | -4/Cetus | Spotted Cetus Guard 22601 | -4/Cetus | Autoassimilated Cetus Guard with RIF 22611 | -4/Cetus | Allies destroyed Cetus Guard 22620 | -4/Cetus | Allies destroyed Cetus Guard 22701 | -4/Cetus | Started Cetus Manufacturing Module 22726 | -4/Cetus | Manufactured an Enhanced Grunt 22751 | -4/Cetus | Manufactured an Enhanced Grunt 22776 | -4/Cetus | Manufactured an Enhanced Grunt 22801 | -4/Cetus | Manufactured an Enhanced Grunt 22826 | -4/Cetus | Manufactured an Enhanced Grunt 22859 | -4/Cetus | Discovered new exit (range 15) 22888 | -4/Cetus | Spotted Cetus Guard 22888 | -4/Cetus | Spotted Cetus Guard 22889 | -4/Cetus | Spotted Cetus Guard 22889 | -4/Cetus | Spotted Cetus Guard 22889 | -4/Cetus | Allies destroyed Cetus Guard 22890 | -4/Cetus | Autoassimilated Cetus Guard with RIF 22905 | -4/Cetus | Allies destroyed Cetus Guard 22906 | -4/Cetus | Destroyed Cetus Guard 22916 | -4/Cetus | Discovered exit to Research (range 16) 22925 | -4/Cetus | Met Revision 17 23133 | -4/Cetus | Build established: Commander-Mutant 23143 | -4/Cetus | Escorted A7 to Cetus Mainframe 23284 | -4/Cetus | Entered Archives 23284 | -4/Archives | Accompanied by 22 allies (A7) 23289 | -4/Archives | Received a hacking code to weaken MAIN.C 23361 | -4/Archives | Discovered new exit (range 15) 23482 | -4/Archives | Discovered exit to Research (range 13) 23643 | -4/Archives | Build established: Botlord-Mutant 23735 | -4/Archives | Discovered new exit (range 15) 23811 | -4/Archives | Entered Hub_04(d) 23811 | -4/Hub_04(d) | Accompanied by 18 allies 23964 | -4/Hub_04(d) | Lost 8 allies 23974 | -4/Hub_04(d) | Discovered exit to Research (range 4) 24240 | -4/Hub_04(d) | Lost 3 allies 24244 | -4/Hub_04(d) | Identified exit to Garrison 24311 | -4/Hub_04(d) | Entered Garrison 24311 | -4/Garrison | Accompanied by 6 allies 24429 | -4/Garrison | Triggered checkpoint 24465 | -4/Garrison | Lost 5 allies 24471 | -4/Garrison | Found Prototype Device 24471 | -4/Garrison | Identified Exp. Thermal Shield 24605 | -4/Garrison | Triggered checkpoint 24622 | -4/Garrison | Triggered checkpoint 24622 | -4/Garrison | Triggered checkpoint 24656 | -4/Garrison | Lost 3 allies 24846 | -4/Garrison | Expanded RIF knowledge: Patrol Navigation 24873 | -4/Garrison | Discovered exit to Research (range 12) 24887 | -4/Garrison | Triggered checkpoint 24910 | -4/Garrison | Garrison Relay disabled 25000 | -4/Garrison | Rescued a captive Derelict 25001 | -4/Garrison | Rescued a captive Derelict 25017 | -4/Garrison | Triggered checkpoint 25060 | -4/Garrison | Garrison Relay disabled 25174 | -4/Garrison | Expanded RIF knowledge: Command Fork 25202 | -4/Garrison | Discovered exit to Research (range 4) 25242 | -4/Garrison | Entered Research 25242 | -3/Research | Accompanied by 8 allies 25242 | -3/Research | Evolved 2 slots: Propulsion x2 25442 | -3/Research | Revision forces began assault on 0b10 25476 | -3/Research | Met up with Revision 17++ 25590 | -3/Research | Lost 4 allies 25634 | -3/Research | Found Prototype Processor 25634 | -3/Research | Identified Spectral Analyzer 25726 | -3/Research | Identified exit to Quarantine 25786 | -3/Research | Found Prototype Protection 25786 | -3/Research | Identified Centrium Heavy Armor Plating 25942 | -3/Research | Research terminal network offline 25991 | -3/Research | Discovered new exit (range 15) 26023 | -3/Research | Central database locked down 26077 | -3/Research | Entered Quarantine 26077 | -3/Quarantine | Accompanied by 6 allies 26094 | -3/Quarantine | Found Alien Artifact 26115 | -3/Quarantine | Identified Subatomic Replicator 26182 | -3/Quarantine | Found Hpw. Transdimensional Reconstructor 26190 | -3/Quarantine | Found Transdimensional Reconstructor 26193 | -3/Quarantine | Found Hpw. Transdimensional Reconstructor 26195 | -3/Quarantine | Found Transdimensional Reconstructor 26208 | -3/Quarantine | Found Dimensional Node Initializer 26210 | -3/Quarantine | Found Dimensional Node Initializer 26214 | -3/Quarantine | Found Dimensional Node Initializer 26214 | -3/Quarantine | Initialized slip node 26276 | -3/Quarantine | Found Core Cannon 26437 | -3/Quarantine | Found Alien Artifact 26658 | -3/Quarantine | Cryocooling Duct disabled 26673 | -3/Quarantine | Ambient heat levels rising (+20) 26673 | -3/Quarantine | Non-combat units ordered to evacuate 26712 | -3/Quarantine | Identified Core Reset Matrix 26787 | -3/Quarantine | Discovered new exit (range 8) 26793 | -3/Quarantine | Garrison activated, responded to threat 26914 | -3/Quarantine | Found Phase Armor 26936 | -3/Quarantine | Found Alien Reactor 26950 | -3/Quarantine | Identified Matter Drive 27279 | -3/Quarantine | Spotted Fortress 27392 | -3/Quarantine | Discovered new exit (range 5) 27392 | -3/Quarantine | Discovered new exit (range 6) 27493 | -3/Quarantine | Entered Protoforge 27537 | -3/Protoforge | Spotted B-86 Titan 27538 | -3/Protoforge | Superfortress began startup sequence 27555 | -3/Protoforge | System corruption reached 10% 27568 | -3/Protoforge | Spotted Hotshot 27570 | -3/Protoforge | Spotted Hotshot 27574 | -3/Protoforge | Spotted Hotshot 27578 | -3/Protoforge | Spotted Hotshot 27580 | -3/Protoforge | Spotted Hotshot 27587 | -3/Protoforge | Core integrity fell below 50% 27596 | -3/Protoforge | Destroyed Hotshot 27598 | -3/Protoforge | Destroyed Hotshot 27609 | -3/Protoforge | Destroyed B-86 Titan 27630 | -3/Protoforge | Destroyed Hotshot 27638 | -3/Protoforge | Destroyed Hotshot 27657 | -3/Protoforge | Destroyed Hotshot 27861 | -3/Protoforge | Discovered new exit (range 16) 27920 | -3/Protoforge | Initialized slip node 28105 | -3/Protoforge | Forge Plexus network access discovered 28125 | -3/Protoforge | Spotted Decapitator 28126 | -3/Protoforge | Spotted Decapitator 28127 | -3/Protoforge | Spotted Decapitator 28127 | -3/Protoforge | Spotted Decapitator 28128 | -3/Protoforge | Destroyed Decapitator 28130 | -3/Protoforge | Destroyed Decapitator 28130 | -3/Protoforge | Destroyed Decapitator 28134 | -3/Protoforge | Destroyed Decapitator 28270 | -3/Protoforge | System corruption reached 30% 28336 | -3/Protoforge | Additional patrols dispatched to research labs 28352 | -3/Protoforge | Crushed by falling debris 28354 | -3/Protoforge | Crushed by falling debris 28385 | -3/Protoforge | Lost 4 parts (1n3u) 28394 | -3/Protoforge | Found Cep. NT7 Matterbank 28404 | -3/Protoforge | Found Crosscalibrator 28417 | -3/Protoforge | Spotted Decapitator 28418 | -3/Protoforge | Spotted Decapitator 28418 | -3/Protoforge | Spotted Decapitator 28419 | -3/Protoforge | Spotted Decapitator 28422 | -3/Protoforge | Destroyed Decapitator 28422 | -3/Protoforge | Destroyed Decapitator 28424 | -3/Protoforge | Destroyed Decapitator 28455 | -3/Protoforge | Lost 3 parts (1p1n1u) 28542 | -3/Protoforge | Spotted Decapitator 28542 | -3/Protoforge | Spotted Decapitator 28542 | -3/Protoforge | Spotted V590-q 28542 | -3/Protoforge | Spotted V789-j 28543 | -3/Protoforge | Spotted Decapitator 28556 | -3/Protoforge | Destroyed Decapitator 28556 | -3/Protoforge | Destroyed Decapitator 28560 | -3/Protoforge | Scanned by Researcher 28569 | -3/Protoforge | Core integrity fell below 20% 28580 | -3/Protoforge | Destroyed Decapitator 28589 | -3/Protoforge | Destroyed by V590-q with Concept XC Strikerail Last Messages --------------- 28580_ N-04 Retriever collects Exp. Surge Thruster. 28580_ Held in stasis. 28580_ C-55 Analyst is analyzing... 28581_ System corrupted: Adv. Heat Sink rejected. 28582_ Penetrated by Slug. 28582_ Slug penetrates Reinforced Barrier. 28582_ Penetrated by Slug. 28582_ Slug penetrates Reinforced Barrier. 28583_ System corrupted: Nova Cannon failed to cycle. 28584_ Held in stasis. 28584_ C-55 Analyst is analyzing... 28585_ Penetrated by Slug. 28588_ Held in stasis. 28588_ C-55 Analyst is analyzing... 28589_ Activated siege mode. 28589_ Slug penetrates Reinforced Barrier. 28589_ Penetrated by Slug. Map ----- +----------------------------------------------------+ | ?????????????????????????????????????????????????? | | ?????????????????????????????????????????????????? | | ?????????????????????????????????????????????????? | | ??????????????????????========?=?????????????????? | | ??????????????????????=====?==?=?????????????????? | | ?????????????????????????????????????????????????? | | ??????????????????==?????????????????????????????? | | ??????????????????==???? ?????????????????????? | | ??????????????????==?? "????????????????????? | | ????????!!?????????=?? ""???????????????????? | | ??????????????????==??? ????????????????????? | | ????????!?????????==??? ????????????????????? | | ?????????!????????==??? ????????????????????? | | ??????????????????==??? ????????????????????? | | ?????????????????##"???? ?????????????????????? | | ????????!????????# ??? ????#????????????????? | | ????????!????????? ?? ??? #????????????????? | | ?????????????????###++### #### ##???????????????? | | !????????????????#" # # #???????????????? | | !????????????????#" # V# "#???????????????? | | !????????????????#" ##????????????????? | | !? ?????????????#" #????????????????? | | ?? ?????????????#" = #????????????????? | | !" ?????????????#" = ##????????????????? | | ?" #????????????#" " ""#c/# " "#???????????????? | | !" #????????????#""????#@ #"""""#???????????????? | | !" #???????????????????# #?####????????????????? | | ?# #???????????????????# #?????????????????????? | | ?# #???????????????????# #?????????????????????? | | ?# #???????????????????# #?????????????????????? | | ?# #???????????????????# #?????????????????????? | | ?# #???????????????????# #?????????????????????? | | ?# #???????????????????# #?????????????????????? | | ?# #???????????????????# #?????????????????????? | | ## ##################### #?????????????????????? | | ##????????????????????? | | #????????????????????? | | % #????????????????????? | | ##########///######## #####????????????????????? | | ??????# #???# #????????????????????????? | | ??????# #???# #????????????????????????? | | ??????# " " #???# #????????????????????????? | | ??????# " " #???# #????????????????????????? | | ??????# ""G"" #???# #????????????????????????? | | ??????# #???# #????????????????????????? | | ??????###########???# #????????????????????????? | | ????????????????????# ????????????????????????? | | ????????????????????# ????????????????????????? | | ????????????????????# ????????????????????????? | | ????????????????????######???????????????????????? | +----------------------------------------------------+ Best States ------------- Heat Dissipation 107 Energy Generation 45 Energy Capacity 725 Matter Stores 300 Matter Capacity 300 Sight Range 16 Terrain Scan Density 10 Corruption Block 20 Armor Coverage 2100 Utility Shielding 66 Weapon Shielding 90 Phase Shifting 15 Evasion (%) 55 Targeting Accuracy 14 Recoil Reduction 6 Kinecelleration 30 Salvage Targeting 2 Offensive Hacking 24 Defensive Hacking 14 Relay Coupler Types 6 Relay Coupler Value 197 Item Schematics ----------------- Exp. Thermal Generator | -3/Quarantine | Archive Cld. Impulse Thruster | -3/Quarantine | Archive Quantum Shading Machine | -3/Quarantine | Archive Adv. EM Shield | -3/Quarantine | Archive Com. Mass Driver | -3/Quarantine | Archive Helical Railgun | -3/Quarantine | Archive Exp. Myomer Leg | -3/Quarantine | Archive Centrium Greatsword | -3/Quarantine | Archive Mni. Fusion Reactor | -3/Quarantine | Archive Tiamat Missile Launcher | -3/Quarantine | Archive Robot Schematics ------------------ B-60 Warrior | -3/Quarantine | Archive B-74 Champion | -3/Quarantine | Archive Fabricated ------------ Nothing Repaired ---------- Imp. Light Armor Plating | 22% | -8/Storage Hvy. Particle Cannon | 44% | -8/Storage Studied --------- Imp. Remote Datajack | -3/Research | Hacked Alien Tech Used ----------------- Dimensional Node Initializer Core Cannon Phase Armor Achievements -------------- Blue Mage Deductive Reasoning Definitely A Prototype Inventory(Loot) Morally Flexible Powerful Protocols Sixth Sense Watcher Gambling Challenges ------------ None Game ------ Seed PitchforkBurstBeacon Manual? 0 Play Time 03:55:31 Cumulative 314.8 hours Start 2025.10.22 @ 22:35:33 End 2025.10.23 @ 12:21:51 Sessions 3 Manual Loads 0 Difficulty Rogue Special Mode None Game No. 102 Rogue 102 Adventurer 0 Explorer 0 Win Type - Total 6 Types 2/0/3/0/0/0/0/0/0/1 Lore% 75 Gallery% 82 Achievement% 60 Wizard Run 0 Options --------- Layout 1 ASCII 0 Keyboard 1 Movement Arrows Keybinds 0 Fullscreen 1 Font 24/Smallcaps Map View 50x35 Zoom Use 0% Tactical HUD 1 Map Filters NONE Filters NONE Steam 1 RUN: 464ff8f2-5cde-44ec-9ef7-02e34d1f965f